bitfinex/quotes_BTCUSD_20220731
["timestamp","ask_amount","ask_price","bid_price","bid_amount"]
[1659282257375,1.06286749,23739.0,23738.0,0.001]
[1659282258076,1.06286749,23739.0,23738.0,0.052]
[1659282258077,0.76486749,23739.0,23738.0,0.052]
[1659282259918,0.43461016,23739.0,23738.0,0.001]
[1659282260148,0.3845246,23739.0,23738.0,0.001]
[1659282261286,0.3055246,23739.0,23738.0,0.001]
[1659282261554,0.2072246,23739.0,23738.0,1.66624068]
[1659282261787,0.00299839,23747.0,23738.0,2.40183768]
[1659282262015,0.00299839,23747.0,23744.0,0.129]
[1659282262462,0.00299839,23747.0,23745.0,0.03467316]
[1659282262676,0.304113,23746.0,23745.0,0.03467316]
[1659282262941,0.00299839,23747.0,23745.0,0.03467316]
[1659282263163,0.00389839,23747.0,23745.0,0.03467316]
[1659282263413,0.00389839,23747.0,23745.0,0.03477741]
[1659282263678,0.304113,23746.0,23745.0,0.00010425]
[1659282263907,0.00389839,23747.0,23745.0,0.03467316]
[1659282264137,0.00389839,23747.0,23745.0,0.05267316]
[1659282264363,0.12473839,23747.0,23745.0,0.01810425]
[1659282264808,0.12473839,23747.0,23746.0,0.03467316]
[1659282265046,0.43036899,23747.0,23746.0,0.03467316]
[1659282265263,0.30952899,23747.0,23746.0,0.03467316]
[1659282265504,0.00541599,23747.0,23746.0,0.03467316]
[1659282265725,0.00541599,23747.0,23746.0,0.04334144]
[1659282265937,0.07841599,23747.0,23746.0,0.05434144]
[1659282267023,0.07841599,23747.0,23746.0,0.011]
[1659282267223,0.00541599,23747.0,23745.0,0.21057425]
[1659282267467,0.00541599,23747.0,23745.0,0.21047]
[1659282267927,0.07841599,23747.0,23746.0,0.10010425]
[1659282268156,0.07841599,23747.0,23746.0,0.03467316]
[1659282268581,0.07841599,23747.0,23746.0,0.57073049]
[1659282268809,0.07841599,23747.0,23746.0,1.20231049]
[1659282269033,0.07841599,23747.0,23746.0,1.17073049]
[1659282269249,0.07841599,23747.0,23746.0,1.20231049]
[1659282269250,0.00541599,23747.0,23746.0,1.20231049]
[1659282269495,0.00541599,23747.0,23746.0,1.43453049]
[1659282269947,0.00541599,23747.0,23746.0,1.51453049]
[1659282271985,0.00541599,23747.0,23746.0,1.50853049]
[1659282272201,0.00541599,23747.0,23746.0,1.51433954]
[1659282273323,0.00541599,23747.0,23746.0,1.44033954]
[1659282274000,0.00541599,23747.0,23746.0,1.5453495]
[1659282275363,0.00541599,23747.0,23746.0,1.4713495]
[1659282276020,0.00541599,23747.0,23746.0,1.5493495]
[1659282276236,0.00541599,23747.0,23746.0,1.26199298]
[1659282276455,0.00541599,23747.0,23746.0,0.80160996]
[1659282276674,0.00541599,23747.0,23746.0,0.23780996]
[1659282277319,0.00541599,23747.0,23746.0,0.15980996]
[1659282278025,0.00541599,23747.0,23746.0,0.23780996]
[1659282279889,0.00541599,23747.0,23746.0,0.23980996]
[1659282281014,0.00541599,23747.0,23746.0,0.53980996]
[1659282281227,0.00541599,23747.0,23746.0,0.45980996]
[1659282281434,0.00541599,23747.0,23746.0,0.15980996]
[1659282281694,0.00541599,23747.0,23746.0,0.03100996]
[1659282281912,0.00541599,23747.0,23746.0,0.048]
[1659282282816,0.00541599,23747.0,23746.0,0.18546828]
[1659282283034,0.00541599,23747.0,23746.0,0.23527847]
[1659282283254,0.00531295,23747.0,23746.0,0.48727847]
[1659282286532,0.00531295,23747.0,23746.0,0.55527847]
[1659282287318,0.00531295,23747.0,23746.0,0.48727847]
[1659282287529,0.00531295,23747.0,23746.0,0.51962331]
[1659282287982,0.00531295,23747.0,23746.0,0.58762331]
[1659282289344,0.00531295,23747.0,23746.0,0.82373631]
[1659282289571,0.00531295,23747.0,23746.0,0.51962331]
[1659282290066,0.00531295,23747.0,23746.0,0.58762331]
[1659282291220,0.00531295,23747.0,23746.0,0.89173631]
[1659282291443,0.00531295,23747.0,23746.0,0.58762331]
[1659282291887,0.00531295,23747.0,23746.0,0.51962331]
[1659282292114,0.00531295,23747.0,23746.0,0.58762331]
[1659282292372,0.00531295,23747.0,23746.0,0.22914484]
[1659282292571,0.00531295,23747.0,23746.0,0.23781312]
[1659282293270,0.00531295,23747.0,23746.0,0.16981312]
[1659282293486,0.00531295,23747.0,23746.0,0.46981312]
[1659282294005,0.00531295,23747.0,23746.0,0.53781312]
[1659282294442,0.00531295,23747.0,23746.0,0.94507045]
[1659282295374,0.00531295,23747.0,23746.0,0.87707045]
[1659282296043,0.00531295,23747.0,23746.0,0.95607045]
[1659282296270,0.00531295,23747.0,23746.0,0.99820045]
[1659282297010,0.00531295,23747.0,23746.0,1.30231345]
[1659282297158,0.00336295,23747.0,23746.0,0.99820045]
[1659282297428,0.41987081,23755.0,23748.0,0.210412]
[1659282297687,0.42206587,23755.0,23754.0,0.57881019]
[1659282297865,0.42206587,23755.0,23754.0,1.41835259]
[1659282298091,0.42206587,23755.0,23754.0,1.76835259]
[1659282298311,0.42206587,23755.0,23754.0,1.11423959]
[1659282299468,0.42206587,23755.0,23754.0,1.41835259]
[1659282299710,0.42206587,23755.0,23754.0,1.11423959]
[1659282299944,0.42206587,23755.0,23754.0,1.49835259]
[1659282300395,0.42206587,23755.0,23754.0,2.97518855]
[1659282301371,0.42206587,23755.0,23754.0,2.89518855]
[1659282302047,0.42206587,23755.0,23754.0,2.97018855]
[1659282302495,0.42206587,23755.0,23754.0,2.982957]
[1659282302938,0.42206587,23755.0,23754.0,1.25504875]
[1659282303173,0.42206587,23755.0,23754.0,0.835118]
[1659282303411,0.42206587,23755.0,23754.0,0.760118]
[1659282303860,0.42206587,23755.0,23754.0,0.834118]
[1659282304303,0.42206587,23755.0,23754.0,1.134118]
[1659282305244,0.42206587,23755.0,23754.0,1.060118]
[1659282305679,0.42206587,23755.0,23754.0,0.339367]
[1659282305896,0.42206587,23755.0,23754.0,0.074]
[1659282306371,0.72617887,23755.0,23754.0,0.074]
[1659282307262,0.72617887,23755.0,23753.0,0.13634566]
[1659282307484,0.03159,23754.0,23753.0,0.38172452]
[1659282307690,0.42206587,23755.0,23753.0,1.10253652]
[1659282307909,0.42206587,23755.0,23753.0,0.83657266]
[1659282308577,0.42206587,23755.0,23753.0,0.41576066]
[1659282308792,0.304113,23754.0,23753.0,0.45043382]
[1659282309028,0.42206587,23755.0,23753.0,0.41576066]
[1659282309242,0.42206587,23755.0,23753.0,0.34676066]
[1659282309458,0.304113,23754.0,23753.0,0.76757566]
[1659282309694,0.42206587,23755.0,23753.0,1.10224882]
[1659282309912,0.42206587,23755.0,23753.0,0.87124882]
[1659282310346,0.42206587,23755.0,23754.0,0.00866828]
[1659282310566,0.42206587,23755.0,23754.0,1.03513635]
[1659282310789,0.42206587,23755.0,23754.0,1.46393635]
[1659282311008,0.42206587,23755.0,23754.0,1.15526807]
[1659282311924,0.42206587,23755.0,23754.0,0.1978]
[1659282313261,0.42206587,23755.0,23754.0,0.4288]
[1659282313483,0.42206587,23755.0,23754.0,0.1288]
[1659282313921,0.42206587,23755.0,23754.0,0.1978]
[1659282315269,0.42206587,23755.0,23754.0,0.1288]
[1659282315918,0.42206587,23755.0,23754.0,0.1978]
[1659282317338,0.42206587,23755.0,23754.0,0.1288]
[1659282318019,0.42206587,23755.0,23754.0,0.40821]
[1659282318895,0.4107884,23755.0,23754.0,0.40821]
[1659282319128,0.39000745,23755.0,23754.0,0.40821]
[1659282319348,0.39000745,23755.0,23754.0,0.33921]
[1659282320063,0.39000745,23755.0,23754.0,0.40821]
[1659282321186,0.39000745,23755.0,23754.0,0.33921]
[1659282322095,0.39000745,23755.0,23754.0,0.41384786]
[1659282322316,0.39000745,23755.0,23754.0,0.40821]
[1659282323461,0.39000745,23755.0,23754.0,0.33921]
[1659282323936,0.39000745,23755.0,23754.0,0.37388316]
[1659282324249,0.39000745,23755.0,23754.0,0.44288316]
[1659282324365,0.39000745,23755.0,23754.0,0.40821]
[1659282325042,0.39000745,23755.0,23754.0,0.829022]
[1659282325486,0.39000745,23755.0,23754.0,0.86369516]
[1659282325711,0.39000745,23755.0,23754.0,0.829022]
[1659282325942,0.37872998,23755.0,23754.0,0.827022]
[1659282327317,0.37872998,23755.0,23754.0,0.760022]
[1659282328022,0.45572998,23755.0,23754.0,0.78754065]
[1659282328481,0.43495009,23755.0,23754.0,0.78754065]
[1659282328718,0.37261042,23755.0,23754.0,0.78754065]
[1659282329845,0.28433295,23755.0,23754.0,0.76354065]
[1659282330080,0.33977801,23755.0,23754.0,0.79554065]
[1659282330299,0.33154546,23755.0,23754.0,0.79554065]
[1659282330529,0.32331291,23755.0,23754.0,0.79554065]
[1659282330810,0.28174995,23755.0,23754.0,0.37472865]
[1659282331004,0.28174995,23755.0,23754.0,0.79553565]
[1659282331457,0.20374995,23755.0,23754.0,0.76353565]
[1659282332121,0.20374995,23755.0,23754.0,0.84253565]
[1659282332578,0.20374995,23755.0,23754.0,0.84087903]
[1659282332829,0.20374995,23755.0,23754.0,0.84749877]
[1659282333281,0.20374995,23755.0,23754.0,0.76849877]
[1659282333501,0.20374995,23755.0,23754.0,1.06849877]
[1659282333718,0.20374995,23755.0,23754.0,0.76849877]
[1659282333941,0.20374995,23755.0,23754.0,0.76187903]
[1659282334162,0.19374995,23755.0,23754.0,0.8215001]
[1659282334393,0.19374995,23755.0,23754.0,0.8205001]
[1659282335329,0.19374995,23755.0,23754.0,0.7625001]
[1659282335590,0.18247248,23755.0,23754.0,0.7625001]
[1659282335807,0.17119501,23755.0,23754.0,0.7625001]
[1659282336035,0.17119501,23755.0,23754.0,0.8205001]
[1659282336266,0.17119501,23755.0,23754.0,1.1205001]
[1659282336490,0.17119501,23755.0,23754.0,0.8205001]
[1659282337208,0.17119501,23755.0,23754.0,0.81887903]
[1659282337431,0.17119501,23755.0,23754.0,0.76954731]
[1659282337671,0.17119501,23755.0,23754.0,0.76087903]
[1659282338129,0.17119501,23755.0,23754.0,0.81887903]
[1659282339278,0.16836529,23755.0,23754.0,0.81887903]
[1659282339505,0.16836529,23755.0,23754.0,0.76954731]
[1659282339988,0.16836529,23755.0,23754.0,0.82754731]
[1659282340214,0.16836529,23755.0,23754.0,0.81887903]
[1659282340887,0.16836529,23755.0,23754.0,0.85355219]
[1659282341324,0.16836529,23755.0,23754.0,0.76087903]
[1659282341997,0.16836529,23755.0,23754.0,0.81887903]
[1659282342442,0.16836529,23755.0,23754.0,0.39807203]
[1659282342696,0.16836529,23755.0,23754.0,0.81887303]
[1659282342874,0.1573425,23755.0,23754.0,0.81887303]
[1659282343127,0.14631971,23755.0,23754.0,0.73531263]
[1659282343361,0.12725028,23755.0,23754.0,0.63472965]
[1659282343740,0.09914795,23755.0,23754.0,0.63472965]
[1659282343943,0.08186608,23755.0,23754.0,0.69272965]
[1659282344158,0.072803,23755.0,23754.0,0.72740281]
[1659282344374,0.06373992,23755.0,23754.0,0.72740281]
[1659282345321,0.06373992,23755.0,23754.0,0.66940281]
[1659282345970,0.06373992,23755.0,23754.0,0.72740281]
[1659282346383,0.05246245,23755.0,23754.0,0.72740281]
[1659282346591,0.03167885,23755.0,23754.0,0.72740281]
[1659282346806,0.01115385,23755.0,23754.0,0.72740281]
[1659282347236,0.01115385,23755.0,23754.0,0.73402255]
[1659282347499,0.01115385,23755.0,23754.0,0.72740281]
[1659282347730,0.01115385,23755.0,23754.0,0.66940281]
[1659282347955,0.01115385,23755.0,23754.0,1.31885648]
[1659282348176,0.01115385,23755.0,23754.0,2.21974666]
[1659282349299,4.49e-06,23755.0,23754.0,2.56900399]
[1659282349533,0.00219506,23755.0,23754.0,2.64270399]
[1659282349767,5.06e-06,23755.0,23754.0,2.64270399]
[1659282350149,0.86188186,23767.0,23758.0,0.210318]
[1659282350356,0.40725733,23766.0,23763.0,0.129]
[1659282350553,0.304113,23765.0,23763.0,0.16367316]
[1659282350773,0.03159,23764.0,23763.0,0.26883516]
[1659282350996,0.40725733,23765.0,23763.0,0.26883516]
[1659282351200,0.304113,23764.0,23763.0,0.47915016]
[1659282351428,0.40725733,23765.0,23763.0,0.47915016]
[1659282351616,0.304113,23764.0,23763.0,0.47915016]
[1659282351844,0.40725733,23765.0,23763.0,0.47915016]
[1659282352057,0.304113,23764.0,23763.0,0.51215016]
[1659282352192,0.47525733,23765.0,23763.0,0.51215016]
[1659282352401,0.304113,23764.0,23763.0,0.477477]
[1659282352735,0.47525733,23765.0,23763.0,0.477477]
[1659282352953,0.47525733,23765.0,23764.0,0.00866828]
[1659282353189,0.77937033,23765.0,23763.0,0.477477]
[1659282353419,0.39725733,23765.0,23764.0,0.03467316]
[1659282353637,0.40725733,23766.0,23763.0,0.444477]
[1659282353901,0.304113,23765.0,23764.0,0.210318]
[1659282354117,0.40827175,23767.0,23764.0,0.38942225]
[1659282354354,0.304113,23766.0,23765.0,0.13477741]
[1659282354596,0.00101442,23767.0,23766.0,0.1288]
[1659282355533,0.00101442,23767.0,23766.0,0.16347316]
[1659282355992,0.00101442,23767.0,23766.0,0.20047316]
[1659282356478,0.00101442,23767.0,23766.0,0.19997316]
[1659282357113,0.0032,23770.0,23768.0,0.10010425]
[1659282357328,0.303844,23769.0,23766.0,0.16297316]
[1659282357562,0.027037,23768.0,23766.0,0.16297316]
[1659282357831,0.303844,23767.0,23766.0,0.16297316]
[1659282358087,0.079,23769.0,23766.0,0.16297316]
[1659282358319,0.303844,23768.0,23766.0,0.16468195]
[1659282358583,0.106037,23769.0,23766.0,0.16468195]
[1659282358801,0.303844,23768.0,23766.0,0.16468195]
[1659282359029,0.079,23769.0,23766.0,0.16468195]
[1659282359030,0.106037,23769.0,23766.0,0.16468195]
[1659282359262,0.303844,23768.0,23766.0,0.16468195]
[1659282359701,0.027037,23769.0,23766.0,0.37497795]
[1659282359933,0.027037,23769.0,23766.0,0.48012795]
[1659282360143,0.382844,23768.0,23766.0,0.48012795]
[1659282360409,0.027037,23767.0,23766.0,0.47985371]
[1659282360671,0.079,23768.0,23766.0,0.47985371]
[1659282360861,0.0962745,23768.0,23766.0,0.47985371]
[1659282361085,0.303844,23767.0,23766.0,0.47985371]
[1659282361299,0.0005,23768.0,23766.0,0.47985371]
[1659282361527,0.304344,23768.0,23766.0,0.16619915]
[1659282361757,0.027037,23767.0,23766.0,0.12973455]
[1659282361984,0.0005,23768.0,23766.0,0.12973455]
[1659282362211,0.0005,23768.0,23766.0,0.15473455]
[1659282362212,0.0745,23768.0,23766.0,0.15473455]
[1659282362455,0.101537,23768.0,23767.0,0.00179137]
[1659282362689,0.0745,23768.0,23767.0,0.03646453]
[1659282363037,0.101537,23768.0,23767.0,0.03646453]
[1659282363431,0.0745,23768.0,23767.0,0.03646453]
[1659282363670,0.48175733,23768.0,23766.0,0.02643455]
[1659282363898,0.48419008,23767.0,23766.0,0.00143455]
[1659282364226,0.47485121,23767.0,23766.0,0.00143455]
[1659282364432,0.46551234,23767.0,23766.0,0.00143455]
[1659282364657,0.7523566,23767.0,23766.0,0.00143455]
[1659282364869,0.74546358,23767.0,23766.0,0.00143455]
[1659282365094,0.74263682,23767.0,23766.0,0.00143455]
[1659282365331,0.69982086,23767.0,23766.0,0.00143455]
[1659282365536,0.6887978,23767.0,23766.0,0.00143455]
[1659282365752,0.66803592,23767.0,23766.0,0.00143455]
[1659282365945,0.65901991,23767.0,23766.0,0.00143455]
[1659282366195,0.65187246,23767.0,23766.0,0.00143455]
[1659282366419,0.64553646,23767.0,23766.0,0.05243455]
[1659282366629,0.64553646,23767.0,23766.0,0.0559532]
[1659282366630,0.62477458,23767.0,23766.0,0.0559532]
[1659282367114,0.62477458,23767.0,23766.0,0.0049532]
[1659282367540,0.62477458,23767.0,23766.0,0.03983103]
[1659282367758,0.62477458,23767.0,23766.0,0.0049532]
[1659282367970,0.61349711,23767.0,23766.0,0.0559532]
[1659282368245,0.59195714,23767.0,23766.0,0.0559532]
[1659282368466,0.57346208,23767.0,23766.0,0.0559532]
[1659282369116,0.57346208,23767.0,23766.0,0.0516632]
[1659282369380,1.09438689,23767.0,23766.0,0.0006632]
[1659282369568,1.83788689,23767.0,23757.0,0.3]
[1659282369787,0.210393,23764.0,23754.0,1.0154]
[1659282370029,1.26559833,23763.0,23754.0,0.9608]
[1659282370248,0.40725733,23762.0,23754.0,0.3655]
[1659282370459,0.303841,23761.0,23754.0,0.3655]
[1659282370730,0.40725733,23760.0,23755.0,0.51037]
[1659282370956,0.303841,23759.0,23757.0,0.17881019]
[1659282371172,0.5401,23766.0,23759.0,0.129]
[1659282371409,0.71109833,23765.0,23760.0,0.3]
[1659282371621,0.303841,23764.0,23760.0,0.3]
[1659282371847,0.303841,23763.0,23759.0,0.234175]
[1659282372060,0.45243989,23765.0,23760.0,0.31264348]
[1659282372267,0.29459347,23764.0,23760.0,0.34731664]
[1659282372473,0.29459,23763.0,23760.0,0.66282264]
[1659282372698,0.07306183,23765.0,23760.0,0.66282264]
[1659282372914,0.29459,23764.0,23760.0,0.66282264]
[1659282373133,0.288858,23763.0,23760.0,0.66282264]
[1659282373346,0.94735733,23766.0,23760.0,0.66282264]
[1659282373605,0.288858,23765.0,23760.0,0.66282264]
[1659282373845,0.0005,23768.0,23764.0,0.1288]
[1659282374058,0.40725733,23767.0,23765.0,0.03467316]
[1659282374277,0.40725733,23767.0,23765.0,0.05313467]
[1659282374518,0.40725733,23767.0,23766.0,0.129]
[1659282374730,0.69611533,23767.0,23766.0,0.129]
[1659282375162,0.68483786,23767.0,23766.0,0.129]
[1659282375371,0.67356039,23767.0,23766.0,0.129]
[1659282375582,0.288858,23767.0,23766.0,0.129]
[1659282375851,0.288858,23767.0,23766.0,0.16367316]
[1659282376064,0.288858,23767.0,23766.0,0.20567316]
[1659282376282,0.288858,23767.0,23766.0,0.171]
[1659282376712,0.0005,23768.0,23766.0,0.171]
[1659282376927,0.0005,23768.0,23766.0,0.042]
[1659282376928,0.288858,23767.0,23766.0,0.042]
[1659282377385,0.0005,23768.0,23765.0,0.01846151]
[1659282377633,0.288858,23767.0,23765.0,0.05444637]
[1659282377881,0.288858,23767.0,23765.0,0.03598486]
[1659282378071,0.288858,23767.0,23765.0,0.0493117]
[1659282378338,0.288858,23767.0,23765.0,0.06646151]
[1659282378510,0.0005,23768.0,23765.0,0.06646151]
[1659282378716,0.26809506,23767.0,23765.0,0.10980295]
[1659282378947,0.24733212,23767.0,23765.0,0.09134144]
[1659282379171,0.22656918,23767.0,23765.0,0.09134144]
[1659282379399,0.226576,23766.0,23765.0,0.04334144]
[1659282379617,0.226576,23766.0,23764.0,0.233961]
[1659282379834,0.74596406,23770.0,23764.0,0.27730244]
[1659282380053,0.63383333,23769.0,23765.0,0.072]
[1659282380256,0.40225733,23769.0,23765.0,0.072]
[1659282380479,0.226576,23768.0,23765.0,0.072]
[1659282380701,1.03833233,23767.0,23765.0,0.072]
[1659282380909,0.226576,23766.0,23765.0,0.072]
[1659282381358,0.63383333,23766.0,23759.0,0.429]
[1659282381590,0.631152,23765.0,23759.0,0.83625733]
[1659282381818,0.226576,23764.0,23759.0,0.83625733]
[1659282382058,0.210376,23764.0,23759.0,0.91425733]
[1659282382332,0.21529853,23763.0,23759.0,0.078]
[1659282382550,0.40725733,23762.0,23759.0,0.078]
[1659282382778,0.21529,23761.0,23759.0,0.078]
[1659282382993,0.40725733,23761.0,23759.0,0.11398691]
[1659282383207,0.21529,23760.0,23759.0,0.105178]
[1659282383466,0.21529,23760.0,23758.0,0.129]
[1659282383694,0.40725733,23763.0,23758.0,0.35781551]
[1659282383909,0.21529,23762.0,23759.0,0.071]
[1659282384119,0.40725733,23763.0,23759.0,0.071]
[1659282384345,0.21529,23762.0,23759.0,0.071]
[1659282384574,0.40744714,23763.0,23759.0,0.071]
[1659282384807,0.21529,23762.0,23759.0,0.08946151]
[1659282385032,0.21529,23762.0,23760.0,0.05]
[1659282385264,0.21529,23762.0,23755.0,0.105196]
[1659282385265,0.40725733,23761.0,23755.0,0.105196]
[1659282385541,0.425697,23760.0,23756.0,0.11846151]
[1659282385731,0.210407,23760.0,23755.0,0.405201]
[1659282385973,0.20067796,23759.0,23757.0,0.1288]
[1659282386206,0.42325733,23761.0,23758.0,0.03467316]
[1659282386435,0.200673,23760.0,23757.0,0.35762751]
[1659282386659,0.42325733,23761.0,23757.0,0.65762751]
[1659282387100,0.42325733,23761.0,23758.0,0.13985916]
[1659282387319,0.42325733,23761.0,23758.0,0.105186]
[1659282387551,0.60793033,23760.0,23755.0,0.2028]
[1659282387813,0.40725733,23759.0,23754.0,0.405203]
[1659282387996,0.40725733,23759.0,23758.0,0.008]
[1659282388228,0.60793033,23759.0,23758.0,0.008]
[1659282388450,0.40725733,23759.0,23758.0,0.008]
[1659282388651,0.60793033,23759.0,23758.0,0.008]
[1659282388873,0.40725733,23759.0,23758.0,0.008]
[1659282389339,0.60793033,23759.0,23757.0,0.105192]
[1659282389569,0.39396037,23759.0,23757.0,0.105192]
[1659282390035,0.39396037,23759.0,23757.0,0.164192]
[1659282390679,0.39396037,23759.0,23757.0,0.19886516]
[1659282390903,0.39396037,23759.0,23757.0,0.164192]
[1659282391383,0.39396037,23759.0,23757.0,0.105192]
[1659282392169,0.47096037,23759.0,23757.0,0.128192]
[1659282392622,0.47096037,23759.0,23757.0,0.023]
[1659282392850,0.200673,23758.0,23757.0,0.023]
[1659282393115,0.47096037,23759.0,23757.0,0.023]
[1659282393308,0.200673,23758.0,23754.0,0.429]
[1659282393545,0.38186014,23759.0,23755.0,0.03467316]
[1659282393814,0.34419994,23760.0,23755.0,0.04334144]
[1659282394042,0.13761561,23759.0,23755.0,0.04334144]
[1659282394275,0.34419994,23760.0,23755.0,0.04334144]
[1659282394505,0.137615,23759.0,23755.0,0.25373344]
[1659282394739,0.34419994,23760.0,23755.0,0.27219495]
[1659282394952,0.137615,23759.0,23755.0,0.27219495]
[1659282395197,0.34419994,23760.0,23755.0,0.37739295]
[1659282395418,0.137615,23759.0,23755.0,0.37739295]
[1659282395647,0.34419994,23760.0,23756.0,0.210385]
[1659282395869,0.137615,23759.0,23757.0,0.105192]
[1659282396089,0.077,23759.0,23757.0,0.105192]
[1659282396328,0.137615,23758.0,23757.0,0.105192]
[1659282396536,0.077,23759.0,23757.0,0.095192]
[1659282396745,0.13271535,23758.0,23757.0,0.095192]
[1659282396997,0.0661635,23759.0,23757.0,0.095192]
[1659282397220,0.1218785,23758.0,23757.0,0.095192]
[1659282397426,0.11201728,23758.0,23757.0,0.095192]
[1659282397718,0.33620152,23760.0,23757.0,0.095192]
[1659282397950,0.112017,23759.0,23757.0,0.305571]
[1659282398169,0.40725733,23761.0,23758.0,0.105187]
[1659282398391,0.112017,23760.0,23758.0,0.315554]
[1659282398624,0.40725733,23761.0,23758.0,0.315554]
[1659282398851,0.112017,23760.0,23759.0,0.105183]
[1659282399093,0.112017,23760.0,23758.0,0.24543836]
[1659282399311,0.40725733,23761.0,23758.0,0.210365]
[1659282399555,0.112017,23760.0,23758.0,0.210365]
[1659282399790,0.38497803,23766.0,23758.0,0.33402051]
[1659282400012,0.072,23761.0,23759.0,0.210362]
[1659282400247,0.072,23761.0,23760.0,0.16387332]
[1659282400487,0.05289577,23761.0,23760.0,0.28233483]
[1659282400728,0.33403832,23765.0,23760.0,0.28233483]
[1659282400951,0.112017,23764.0,23761.0,0.631]
[1659282401172,0.5628,23767.0,23761.0,0.631]
[1659282401412,0.45621694,23766.0,23761.0,0.631]
[1659282401731,0.61761533,23766.0,23761.0,0.105166]
[1659282401921,0.45622733,23765.0,23758.0,0.129]
[1659282402155,0.40725733,23764.0,23761.0,0.056]
[1659282402379,0.6713361,23763.0,23761.0,0.056]
[1659282402608,0.39316994,23762.0,23761.0,0.056]
[1659282403282,0.39316994,23762.0,23761.0,0.05823526]
[1659282403546,0.39316994,23762.0,23761.0,0.00223526]
[1659282404013,0.39316994,23762.0,23761.0,0.08123526]
[1659282404244,0.38222954,23762.0,23761.0,0.08123526]
[1659282404475,0.37193671,23762.0,23761.0,0.08123526]
[1659282404705,0.36164388,23762.0,23761.0,0.08123526]
[1659282405444,0.36164388,23762.0,23761.0,0.00223526]
[1659282406145,0.36164388,23762.0,23761.0,0.05023526]
[1659282407528,0.36164388,23762.0,23761.0,0.00223526]
[1659282407752,0.35036641,23762.0,23761.0,0.00223526]
[1659282408009,0.32497998,23762.0,23761.0,0.00223526]
[1659282408231,0.31607864,23762.0,23761.0,0.03823526]
[1659282409423,0.31607864,23762.0,23761.0,0.00223526]
[1659282410082,0.31607864,23762.0,23761.0,0.04123526]
[1659282411556,0.30404061,23762.0,23761.0,0.00223526]
[1659282411779,0.293086,23762.0,23761.0,0.00223526]
[1659282412205,0.293086,23762.0,23761.0,0.04023526]
[1659282412709,0.293086,23762.0,23761.0,0.08473526]
[1659282413210,0.04897,23762.0,23761.0,0.08473526]
[1659282413426,0.5628,23767.0,23761.0,0.08473526]
[1659282413665,0.45622733,23766.0,23761.0,0.22457442]
[1659282413874,0.45622733,23765.0,23762.0,0.210332]
[1659282414096,0.40725733,23764.0,23762.0,0.260332]
[1659282414362,0.04897,23766.0,23763.0,0.105165]
[1659282414568,0.40725733,23766.0,23763.0,0.105165]
[1659282414782,0.04897,23765.0,23763.0,0.105165]
[1659282415005,0.45622733,23765.0,23763.0,0.105165]
[1659282415263,0.50425234,23763.0,23762.0,0.05]
[1659282415500,0.9002322,23763.0,23762.0,0.00223961]
[1659282415721,1.5701377,23763.0,23762.0,0.00223961]
[1659282415952,1.56089017,23763.0,23762.0,0.00223961]
[1659282416427,1.89011452,23763.0,23762.0,0.00223961]
[1659282416655,1.54011452,23763.0,23762.0,0.00223961]
[1659282417128,1.89011452,23763.0,23762.0,0.00223961]
[1659282417346,1.94011452,23763.0,23762.0,0.00223961]
[1659282418019,2.38361452,23763.0,23762.0,0.00223961]
[1659282418674,2.08361452,23763.0,23762.0,0.00223961]
[1659282418920,1.34113905,23763.0,23762.0,0.00223961]
[1659282419183,1.32061405,23763.0,23762.0,0.00223961]
[1659282419414,1.31127518,23763.0,23762.0,0.00223961]
[1659282419639,1.30370043,23763.0,23762.0,0.00223961]
[1659282419846,1.29612568,23763.0,23762.0,0.00223961]
[1659282420087,1.28991438,23763.0,23762.0,0.08123961]
[1659282420278,1.2780508,23763.0,23762.0,0.08123961]
[1659282421324,1.2780508,23763.0,23762.0,0.00223961]
[1659282422015,1.3280508,23763.0,23762.0,0.00223961]
[1659282422425,1.2780508,23763.0,23762.0,0.00823961]
[1659282422630,1.36167931,23763.0,23762.0,0.00823961]
[1659282422842,0.57229957,23762.0,23756.0,0.35]
[1659282423048,0.44280271,23761.0,23756.0,0.56039]
[1659282423214,0.44401092,23760.0,23758.0,0.105195]
[1659282423414,0.04897,23759.0,23758.0,0.105195]
[1659282423682,0.03785307,23759.0,23758.0,0.105195]
[1659282424099,0.03785307,23759.0,23758.0,0.157195]
[1659282424349,0.03785307,23759.0,23758.0,0.052]
[1659282424350,0.4451104,23759.0,23758.0,0.052]
[1659282424474,0.44588866,23759.0,23758.0,0.052]
[1659282425104,0.84588866,23759.0,23758.0,0.052]
[1659282425323,1.28938866,23759.0,23751.0,0.3]
[1659282425566,0.703953,23757.0,23751.0,0.05]
[1659282425806,0.88859533,23756.0,23752.0,0.05]
[1659282426022,0.40725733,23755.0,23751.0,0.077]
[1659282426228,0.02656053,23754.0,23751.0,0.077]
[1659282426452,0.42880602,23753.0,23751.0,0.127]
[1659282426671,0.39198752,23753.0,23751.0,0.127]
[1659282426892,0.210481,23752.0,23751.0,0.127]
[1659282427202,0.237037,23752.0,23751.0,0.077]
[1659282427400,0.237037,23752.0,23748.0,0.8409]
[1659282427634,0.210481,23752.0,23748.0,0.8409]
[1659282427821,0.210481,23752.0,23748.0,0.8909]
[1659282428035,0.210481,23752.0,23748.0,0.9469]
[1659282428257,0.40725733,23751.0,23748.0,0.5969]
[1659282428529,0.40725733,23751.0,23748.0,0.056]
[1659282428746,0.026556,23750.0,23749.0,0.03806081]
[1659282428967,0.40725733,23751.0,23749.0,0.3282744]
[1659282429391,0.40725733,23751.0,23748.0,0.3]
[1659282429646,0.40725733,23751.0,23749.0,0.04113463]
[1659282429862,0.39105259,23751.0,23749.0,0.04113463]
[1659282430070,0.37977512,23751.0,23748.0,0.465231]
[1659282430309,0.36995608,23751.0,23748.0,0.36]
[1659282430526,0.36115201,23751.0,23748.0,0.41]
[1659282430746,0.34197916,23751.0,23748.0,0.41]
[1659282430987,0.32118495,23751.0,23748.0,0.41]
[1659282431201,0.30039074,23751.0,23748.0,0.41]
[1659282431421,0.30039074,23751.0,23748.0,0.45523]
[1659282431832,0.3020121,23751.0,23748.0,0.45523]
[1659282432051,0.3020121,23751.0,23749.0,0.03467316]
[1659282432306,0.3020121,23751.0,23748.0,0.21523]
[1659282433420,0.3020121,23751.0,23748.0,0.15523]
[1659282433659,0.29895631,23751.0,23748.0,0.15523]
[1659282434101,0.00074583,23750.0,23749.0,0.0382145]
[1659282434319,0.00074583,23750.0,23748.0,0.104]
[1659282435165,0.29895631,23751.0,23748.0,0.104]
[1659282436007,0.29895631,23751.0,23748.0,0.111]